[Event "RUS-ch Rapid Men 2018"]
[Site "Sochi"]
[Date "2018.10.06"]
[Round "6"]
[White "Vastrukhin, Oleg"]
[Black "Kozlov, Oleg"]
[Result "1-0"]
[ECO "A36"]
[WhiteElo "2413"]
[BlackElo "2275"]
[Annotator "NA"]
[PlyCount "79"]
[EventDate "2018.10.05"]
[EventType "swiss"]
[EventCountry "RUS"]
[SourceTitle "playchess.com"]
[Source "ChessBase"]
[SourceQuality "1"]
[TimeControl "900+10"]

1. g3 {[%emt 0:00:00]} c5 {[%emt 0:00:00]} 2. Bg2 {[%emt 0:00:00]} Nc6 {[%emt 0:00:00]} 3. c4 {[%emt 0:00:00]} g6 {[%emt 0:00:14]} 4. Nc3 {[%emt 0:00:00]} Bg7 {[%emt 0:00:00]} 5. e3 {[%emt 0:00:01]} e5 {[%emt 0:00:14]} 6. Nge2 {[%emt 0:00:08]} Nge7 {[%emt 0:00:02]} 7. O-O {[%emt 0:00:09]} O-O {[%emt 0:00:02]} 8. d3 {[%emt 0:00:23]} a6 {[%emt 0:00:30]} 9. b3 {[%emt 0:00:26]} Rb8 {[%emt 0:00:08]} 10. Bb2 {[%emt 0:00:07]} d6 {[%emt 0:01:09]} 11. Qd2 {[%emt 0:00:19]} b5 {[%emt 0:00:19]} 12. Nd5 {[%emt 0:00:51]} Nxd5 {[%emt 0:03:58]} 13. cxd5 {[%emt 0:00:34]} Ne7 {[%emt 0:00:02]} 14. f4 {[%emt 0:00:09]} f6 {[%emt 0:01:36]} 15. e4 {[%emt 0:00:52]} Bd7 {[%emt 0:00:42]} 16. h3 {[%emt 0:00:21]} h5 {[%emt 0:02:03]} 17. Rf2 {[%emt 0:01:00]} Bh6 {[%emt 0:01:46]} 18. Raf1 {[%emt 0:00:38]} c4 {[%emt 0:02:28]} 19. d4 {[%emt 0:00:16]} exd4 {[%emt 0:00:46]} 20. Nxd4 {[%emt 0:00:23]} f5 {[%emt 0:00:46]} 21. Ne6 {[%emt 0:00:51]} Bxe6 {[%emt 0:00:01]} 22. dxe6 {[%emt 0:00:01]} fxe4 {[%emt 0:00:21]} 23. Bxe4 {[%emt 0:00:41]} d5 {[%emt 0:00:01]} 24. Bg2 {[%emt 0:00:04]} b4 {[%emt 0:00:34]} 25. Bd4 {[%emt 0:00:31]} Rc8 {[%emt 0:01:00]} 26. Qxb4 {[%emt 0:00:28]} Nc6 {[%emt 0:00:01]} 27. Qb6 {[%emt 0:00:21]} Nxd4 {[%emt 0:00:27]} 28. Qxd4 {[%emt 0:00:03]} cxb3 {[%emt 0:00:10]} 29. axb3 {[%emt 0:00:03]} Rf5 {[%emt 0:00:15]} 30. g4 {[%emt 0:00:01]} hxg4 {[%emt 0:00:01]} 31. hxg4 {[%emt 0:00:02]} Bg7 {[%emt 0:00:05]} 32. Qd1 {[%emt 0:00:03]} Rf8 {[%emt 0:00:07]} 33. Qxd5 {[%emt 0:00:02]} Qe7 {[%emt 0:00:01]} 34. Qd7 {[%emt 0:00:14]} Rc7 {[%emt 0:00:25]} 35. Qxe7 {[%emt 0:00:04]} Rxe7 {[%emt 0:00:01]} 36. Re2 {[%emt 0:00:12]} Bd4+ {[%emt 0:00:10]} 37. Kh2 {[%emt 0:00:04]} Kg7 {[%emt 0:00:03]} 38. Kg3 {[%emt 0:00:08]} Bb6 {[%emt 0:00:34]} 39. g5 {[%emt 0:00:40]} Rd8 {[%emt 0:00:15]} 40. Rf3 {[%emt 0:01:25]} 1-0

[Event "RUS-ch Rapid Men 2018"]
[Site "Sochi"]
[Date "2018.10.06"]
[Round "6"]
[White "Ofitserian, Boris"]
[Black "Panarin, Mikhail"]
[Result "1-0"]
[ECO "A36"]
[WhiteElo "2411"]
[BlackElo "2562"]
[Annotator "ChessBase"]
[PlyCount "93"]
[EventDate "2018.10.05"]
[EventType "swiss"]
[EventCountry "RUS"]
[SourceTitle "playchess.com"]
[Source "ChessBase"]
[SourceQuality "1"]
[TimeControl "900+10"]

1. c4 {[%emt 0:00:00]} c5 {[%emt 0:00:00]} 2. g3 {[%emt 0:00:00]} Nc6 {[%emt 0:00:04]} 3. Bg2 {[%emt 0:00:00]} g6 {[%emt 0:00:11]} 4. Nc3 {[%emt 0:00:00]} Bg7 {[%emt 0:00:02]} 5. e3 {[%emt 0:00:11]} e6 {[%emt 0:00:59]} 6. Nge2 {[%emt 0:00:41]} Nge7 {[%emt 0:00:03]} 7. Nf4 {[%emt 0:00:58]} O-O {[%emt 0:00:32]} 8. O-O {[%emt 0:00:15]} Rb8 {[%emt 0:00:32]} 9. a3 {[%emt 0:01:32]} a6 {[%emt 0:01:03]} 10. d3 {[%emt 0:02:34]} b5 {[%emt 0:00:22]} 11. Qc2 {[%emt 0:01:21]} bxc4 {[%emt 0:02:57]} 12. dxc4 {[%emt 0:00:04]} Na5 {[%emt 0:00:01]} 13. Ne4 {[%emt 0:00:37]} Nb3 {[%emt 0:00:06]} 14. Rb1 {[%emt 0:00:05]} Qc7 {[%emt 0:02:38]} 15. Rd1 {[%emt 0:02:01]} Rb6 {[%emt 0:00:05]} 16. Rd3 {[%emt 0:01:10]} Nxc1 {[%emt 0:02:16]} 17. Qxc1 {[%emt 0:00:01]} f5 {[%emt 0:00:06]} 18. Nc3 {[%emt 0:00:10]} Nc6 {[%emt 0:00:05]} 19. Na4 {[%emt 0:01:26]} Rb8 {[%emt 0:00:01]} 20. Rd2 {[%emt 0:00:13]} d6 {[%emt 0:01:45]} 21. Qd1 {[%emt 0:01:01]} Rd8 {[%emt 0:00:02]} 22. h4 {[%emt 0:00:21]} Kf7 {[%emt 0:00:32]} 23. h5 {[%emt 0:00:30]} Ne5 {[%emt 0:00:53]} 24. Qe2 {[%emt 0:00:53]} g5 {[%emt 0:00:30]} 25. Nh3 {[%emt 0:00:26]} g4 {[%emt 0:00:40]} 26. Nf4 {[%emt 0:00:20]} Bb7 {[%emt 0:00:01]} 27. e4 {[%emt 0:00:16]} Nf3+ {[%emt 0:00:35]} 28. Bxf3 {[%emt 0:00:35]} gxf3 {[%emt 0:00:02]} 29. Qf1 {[%emt 0:00:15]} Bxe4 {[%emt 0:00:02]} 30. Re1 {[%emt 0:00:01]} Qc6 {[%emt 0:00:36]} 31. Nc3 {[%emt 0:00:04]} Bxc3 {[%emt 0:00:02]} 32. bxc3 {[%emt 0:00:02]} h6 {[%emt 0:00:36]} 33. Qh3 {[%emt 0:00:50]} Rb6 {[%emt 0:00:28]} 34. Qh4 {[%emt 0:00:09]} Rdb8 {[%emt 0:00:39]} 35. Ng6 {[%emt 0:00:01]} Qc7 {[%emt 0:00:09]} 36. Rxe4 {[%emt 0:00:49]} fxe4 {[%emt 0:00:02]} 37. Qxe4 {[%emt 0:00:01]} Kg7 {[%emt 0:00:20]} 38. Qg4 {[%emt 0:00:25]} Kh7 {[%emt 0:00:23]} 39. Qxe6 {[%emt 0:00:04]} R8b7 {[%emt 0:00:51]} 40. Rd5 {[%emt 0:00:34]} Qf7 {[%emt 0:00:12]} 41. Qe4 {[%emt 0:00:01]} Kg7 {[%emt 0:00:05]} 42. Rf5 {[%emt 0:00:10]} Qd7 {[%emt 0:00:13]} 43. Qg4 {[%emt 0:00:07]} Qe8 {[%emt 0:00:14]} 44. Nf8+ {[%emt 0:00:38]} Kh8 {[%emt 0:00:02]} 45. Ng6+ {[%emt 0:00:08]} Kh7 {[%emt 0:00:01]} 46. Qxf3 {[%emt 0:00:12]} Qc6 {[%emt 0:00:22]} 47. Rf7+ {[%emt 0:00:06]} 1-0

[Event "RUS-ch Rapid Men 2018"]
[Site "Sochi"]
[Date "2018.10.06"]
[Round "6"]
[White "Miroshnichenko, Pavel"]
[Black "Usmanov, Vasily"]
[Result "1/2-1/2"]
[ECO "A06"]
[WhiteElo "2275"]
[BlackElo "2453"]
[Annotator "ChessBase"]
[PlyCount "104"]
[EventDate "2018.10.05"]
[EventType "swiss"]
[EventCountry "RUS"]
[SourceTitle "playchess.com"]
[Source "ChessBase"]
[SourceQuality "1"]
[TimeControl "900+10"]

1. Nf3 {[%emt 0:00:00]} d5 {[%emt 0:00:00]} 2. e3 {[%emt 0:00:00]} Bg4 {[%emt 0:00:20]} 3. c4 {[%emt 0:00:00]} dxc4 {[%emt 0:00:02]} 4. Bxc4 {[%emt 0:00:00]} e6 {[%emt 0:00:04]} 5. h3 {[%emt 0:00:00]} Bh5 {[%emt 0:00:06]} 6. O-O {[%emt 0:00:02]} Nc6 {[%emt 0:00:08]} 7. d4 {[%emt 0:01:44]} a6 {[%emt 0:00:05]} 8. Be2 {[%emt 0:00:20]} Nf6 {[%emt 0:00:03]} 9. b3 {[%emt 0:00:08]} Bd6 {[%emt 0:00:01]} 10. Bb2 {[%emt 0:00:03]} O-O {[%emt 0:00:02]} 11. Nbd2 {[%emt 0:00:02]} Qe8 {[%emt 0:00:07]} 12. Nc4 {[%emt 0:00:48]} Rd8 {[%emt 0:00:02]} 13. Nfd2 {[%emt 0:00:55]} Bxe2 {[%emt 0:02:13]} 14. Qxe2 {[%emt 0:00:02]} e5 {[%emt 0:00:05]} 15. dxe5 {[%emt 0:00:08]} Nxe5 {[%emt 0:00:09]} 16. Nxd6 {[%emt 0:00:05]} cxd6 {[%emt 0:00:13]} 17. Nc4 {[%emt 0:00:38]} Qe6 {[%emt 0:00:34]} 18. Rac1 {[%emt 0:01:16]} Rc8 {[%emt 0:00:21]} 19. Rfd1 {[%emt 0:00:28]} Rfd8 {[%emt 0:01:43]} 20. Bd4 {[%emt 0:02:16]} Nxc4 {[%emt 0:00:53]} 21. Rxc4 {[%emt 0:00:03]} Rxc4 {[%emt 0:00:03]} 22. Qxc4 {[%emt 0:00:03]} Qxc4 {[%emt 0:01:01]} 23. bxc4 {[%emt 0:00:01]} Ne8 {[%emt 0:00:03]} 24. Rb1 {[%emt 0:01:17]} Rd7 {[%emt 0:00:02]} 25. Kf1 {[%emt 0:00:07]} f6 {[%emt 0:01:20]} 26. Ke2 {[%emt 0:00:06]} Kf7 {[%emt 0:00:01]} 27. f4 {[%emt 0:01:01]} g6 {[%emt 0:00:09]} 28. g4 {[%emt 0:00:04]} Ng7 {[%emt 0:00:15]} 29. e4 {[%emt 0:01:58]} Ne6 {[%emt 0:00:13]} 30. Be3 {[%emt 0:00:02]} h6 {[%emt 0:04:36]} 31. h4 {[%emt 0:01:39]} g5 {[%emt 0:00:54]} 32. f5 {[%emt 0:00:18]} Nd8 {[%emt 0:00:07]} 33. Rh1 {[%emt 0:01:18]} Kg7 {[%emt 0:01:12]} 34. hxg5 {[%emt 0:00:02]} hxg5 {[%emt 0:00:01]} 35. Rd1 {[%emt 0:00:18]} Nf7 {[%emt 0:00:16]} 36. c5 {[%emt 0:00:15]} Ne5 {[%emt 0:01:01]} 37. Rxd6 {[%emt 0:00:17]} Re7 {[%emt 0:01:01]} 38. Bd4 {[%emt 0:00:29]} Nxg4 {[%emt 0:00:03]} 39. Kf3 {[%emt 0:00:07]} Ne5+ {[%emt 0:00:11]} 40. Bxe5 {[%emt 0:00:07]} Rxe5 {[%emt 0:00:02]} 41. Rd7+ {[%emt 0:00:16]} Kh6 {[%emt 0:00:29]} 42. Rd5 {[%emt 0:01:19]} g4+ {[%emt 0:01:13]} 43. Kf4 {[%emt 0:00:02]} g3 {[%emt 0:00:02]} 44. Rd6 {[%emt 0:00:51]} Kg7 {[%emt 0:00:25]} 45. Rd7+ {[%emt 0:00:07]} Kf8 {[%emt 0:00:15]} 46. Rxb7 {[%emt 0:00:09]} g2 {[%emt 0:00:09]} 47. Rb1 {[%emt 0:00:05]} Rxc5 {[%emt 0:00:04]} 48. Rg1 {[%emt 0:00:57]} Rc2 {[%emt 0:00:02]} 49. a4 {[%emt 0:00:01]} Ke7 {[%emt 0:00:02]} 50. Kf3 {[%emt 0:00:22]} Rc3+ {[%emt 0:00:42]} 51. Kf4 {[%emt 0:00:08]} Rc2 {[%emt 0:00:06]} 52. Kf3 {[%emt 0:00:01]} Rc3+ {[%emt 0:00:03]} 1/2-1/2

[Event "RUS-ch Rapid Men 2018"]
[Site "Sochi"]
[Date "2018.10.06"]
[Round "6"]
[White "Taysayev, Timur"]
[Black "Gutenev, Alexander"]
[Result "0-1"]
[ECO "B89"]
[WhiteElo "2225"]
[BlackElo "2456"]
[Annotator "ChessBase"]
[PlyCount "108"]
[EventDate "2018.10.05"]
[EventType "swiss"]
[EventCountry "RUS"]
[SourceTitle "playchess.com"]
[Source "ChessBase"]
[SourceQuality "1"]
[TimeControl "900+10"]

1. e4 {[%emt 0:00:00]} c5 {[%emt 0:00:00]} 2. Nf3 {[%emt 0:00:00]} Nc6 {[%emt 0:00:00]} 3. d4 {[%emt 0:00:00]} cxd4 {[%emt 0:00:00]} 4. Nxd4 {[%emt 0:00:00]} Nf6 {[%emt 0:00:00]} 5. Nc3 {[%emt 0:00:01]} d6 {[%emt 0:00:00]} 6. Bc4 {[%emt 0:00:03]} e6 {[%emt 0:00:00]} 7. Be3 {[%emt 0:00:02]} a6 {[%emt 0:00:00]} 8. Qe2 {[%emt 0:00:03]} Qc7 {[%emt 0:00:01]} 9. Bb3 {[%emt 0:00:05]} Be7 {[%emt 0:00:06]} 10. O-O-O {[%emt 0:00:03]} Na5 {[%emt 0:00:02]} 11. g4 {[%emt 0:00:19]} b5 {[%emt 0:00:01]} 12. g5 {[%emt 0:00:03]} Nxb3+ {[%emt 0:00:02]} 13. axb3 {[%emt 0:00:02]} Nd7 {[%emt 0:00:01]} 14. Nf5 {[%emt 0:01:38]} exf5 {[%emt 0:00:07]} 15. Nd5 {[%emt 0:00:01]} Qd8 {[%emt 0:00:02]} 16. exf5 {[%emt 0:00:06]} Kf8 {[%emt 0:01:46]} 17. f6 {[%emt 0:02:29]} Bxf6 {[%emt 0:02:19]} 18. gxf6 {[%emt 0:00:19]} Nxf6 {[%emt 0:00:02]} 19. Bg5 {[%emt 0:05:19]} Qe8 {[%emt 0:02:49]} 20. Qf3 {[%emt 0:02:53]} Nxd5 {[%emt 0:01:12]} 21. Qxd5 {[%emt 0:00:19]} Be6 {[%emt 0:00:28]} 22. Qxd6+ {[%emt 0:00:10]} Kg8 {[%emt 0:00:03]} 23. Rhg1 {[%emt 0:00:17]} Bf5 {[%emt 0:01:45]} 24. Rge1 {[%emt 0:01:41]} Qc8 {[%emt 0:00:03]} 25. Qd8+ {[%emt 0:00:40]} Qxd8 {[%emt 0:00:03]} 26. Rxd8+ {[%emt 0:00:01]} Rxd8 {[%emt 0:00:01]} 27. Bxd8 {[%emt 0:00:01]} Be6 {[%emt 0:00:53]} 28. f4 {[%emt 0:00:28]} h5 {[%emt 0:00:13]} 29. Re5 {[%emt 0:00:20]} Rh6 {[%emt 0:01:10]} 30. f5 {[%emt 0:01:19]} Bd7 {[%emt 0:00:04]} 31. c4 {[%emt 0:00:49]} Rc6 {[%emt 0:01:28]} 32. c5 {[%emt 0:00:03]} Rc8 {[%emt 0:00:09]} 33. Bh4 {[%emt 0:00:21]} f6 {[%emt 0:00:30]} 34. Rd5 {[%emt 0:00:06]} Bc6 {[%emt 0:00:01]} 35. Rd6 {[%emt 0:00:04]} a5 {[%emt 0:00:34]} 36. Kd2 {[%emt 0:00:06]} Be4 {[%emt 0:00:31]} 37. Bf2 {[%emt 0:00:11]} Bxf5 {[%emt 0:00:11]} 38. Ra6 {[%emt 0:00:00]} Rd8+ {[%emt 0:00:08]} 39. Ke3 {[%emt 0:00:07]} Rd3+ {[%emt 0:00:37]} 40. Kf4 {[%emt 0:00:41]} Bg4 {[%emt 0:00:05]} 41. Ke4 {[%emt 0:00:18]} Rxb3 {[%emt 0:00:04]} 42. Rxa5 {[%emt 0:00:07]} Rxb2 {[%emt 0:00:07]} 43. Bg3 {[%emt 0:00:11]} b4 {[%emt 0:00:16]} 44. Kd4 {[%emt 0:00:12]} b3 {[%emt 0:00:26]} 45. Kc3 {[%emt 0:00:03]} Rb1 {[%emt 0:00:07]} 46. Rb5 {[%emt 0:00:05]} Be6 {[%emt 0:00:06]} 47. Rb6 {[%emt 0:00:14]} Kf7 {[%emt 0:00:07]} 48. c6 {[%emt 0:00:16]} Rc1+ {[%emt 0:00:11]} 49. Kd2 {[%emt 0:00:09]} Rc2+ {[%emt 0:00:05]} 50. Kd3 {[%emt 0:00:09]} Bf5+ {[%emt 0:00:07]} 51. Kd4 {[%emt 0:00:01]} b2 {[%emt 0:00:13]} 52. c7 {[%emt 0:00:08]} h4 {[%emt 0:02:02]} 53. Bxh4 {[%emt 0:00:05]} Rxh2 {[%emt 0:00:04]} 54. Be1 {[%emt 0:00:11]} Rh1 {[%emt 0:00:33]} 0-1

[Event "RUS-ch Rapid Men 2018"]
[Site "Sochi"]
[Date "2018.10.06"]
[Round "6"]
[White "Mikhailovsky, Vladimir"]
[Black "Shcherbakov, Ruslan"]
[Result "0-1"]
[ECO "A05"]
[WhiteElo "2185"]
[BlackElo "2516"]
[Annotator "ChessBase"]
[PlyCount "72"]
[EventDate "2018.10.05"]
[EventType "swiss"]
[EventCountry "RUS"]
[SourceTitle "playchess.com"]
[Source "ChessBase"]
[SourceQuality "1"]
[TimeControl "900+10"]

1. Nf3 {[%emt 0:02:44]} Nf6 {[%emt 0:00:11]} 2. g3 {[%emt 0:00:02]} b5 {[%emt 0:00:04]} 3. Bg2 {[%emt 0:00:02]} Bb7 {[%emt 0:00:01]} 4. Na3 {[%emt 0:00:02]} a6 {[%emt 0:00:26]} 5. c4 {[%emt 0:00:02]} e5 {[%emt 0:01:14]} 6. cxb5 {[%emt 0:00:21]} Bxa3 {[%emt 0:00:09]} 7. bxa3 {[%emt 0:00:03]} axb5 {[%emt 0:00:08]} 8. O-O {[%emt 0:00:07]} d6 {[%emt 0:00:17]} 9. d4 {[%emt 0:00:57]} e4 {[%emt 0:01:24]} 10. Nh4 {[%emt 0:00:22]} O-O {[%emt 0:00:21]} 11. Qb3 {[%emt 0:00:43]} Bd5 {[%emt 0:02:15]} 12. Qxb5 {[%emt 0:01:06]} Nc6 {[%emt 0:00:01]} 13. Qb2 {[%emt 0:00:49]} Qd7 {[%emt 0:01:46]} 14. h3 {[%emt 0:02:41]} Ra4 {[%emt 0:00:35]} 15. Rd1 {[%emt 0:01:28]} h6 {[%emt 0:01:55]} 16. Bf1 {[%emt 0:01:41]} Be6 {[%emt 0:01:23]} 17. g4 {[%emt 0:02:01]} Rb8 {[%emt 0:00:11]} 18. Qc3 {[%emt 0:01:38]} Nd5 {[%emt 0:00:11]} 19. Qg3 {[%emt 0:00:03]} Nxd4 {[%emt 0:03:33]} 20. Rd2 {[%emt 0:00:32]} g5 {[%emt 0:01:30]} 21. Ng2 {[%emt 0:00:09]} f5 {[%emt 0:00:06]} 22. Bb2 {[%emt 0:00:46]} f4 {[%emt 0:00:01]} 23. Qh2 {[%emt 0:00:00]} c5 {[%emt 0:00:04]} 24. Rad1 {[%emt 0:00:06]} Qa7 {[%emt 0:00:03]} 25. h4 {[%emt 0:00:05]} Qg7 {[%emt 0:00:10]} 26. Kh1 {[%emt 0:00:28]} Bxg4 {[%emt 0:00:21]} 27. f3 {[%emt 0:00:19]} Bf5 {[%emt 0:00:07]} 28. Qg1 {[%emt 0:00:06]} e3 {[%emt 0:00:04]} 29. Bxd4 {[%emt 0:00:16]} cxd4 {[%emt 0:00:03]} 30. Rd3 {[%emt 0:00:06]} Bxd3 {[%emt 0:00:03]} 31. Rxd3 {[%emt 0:00:01]} Rb1 {[%emt 0:00:04]} 32. Kh2 {[%emt 0:00:16]} Nc3 {[%emt 0:00:17]} 33. Qh1 {[%emt 0:00:17]} gxh4 {[%emt 0:00:14]} 34. Rxc3 {[%emt 0:00:09]} dxc3 {[%emt 0:00:18]} 35. Kg1 {[%emt 0:00:01]} Qg3 {[%emt 0:00:12]} 36. Qxh4 {[%emt 0:00:03]} Qxh4 {[%emt 0:00:04]} 0-1

[Event "RUS-ch Rapid Men 2018"]
[Site "Sochi"]
[Date "2018.10.06"]
[Round "7"]
[White "Grachev, Boris"]
[Black "Kezin, Roman"]
[Result "1/2-1/2"]
[ECO "D00"]
[WhiteElo "2626"]
[BlackElo "2471"]
[Annotator "RC"]
[PlyCount "184"]
[EventDate "2018.10.05"]
[EventType "swiss"]
[EventCountry "RUS"]
[SourceTitle "playchess.com"]
[Source "ChessBase"]
[SourceQuality "1"]
[TimeControl "900+10"]

1. d4 {[%emt 0:00:00]} d5 {[%emt 0:00:00]} 2. Bf4 {[%emt 0:00:00]} c5 {[%emt 0:00:00]} 3. e3 {[%emt 0:00:00]} Nc6 {[%emt 0:00:00]} 4. c3 {[%emt 0:00:00]} Qb6 {[%emt 0:00:00]} 5. Qc2 {[%emt 0:00:19]} Nf6 {[%emt 0:00:31]} 6. Nd2 {[%emt 0:00:39]} Bg4 {[%emt 0:00:39]} 7. h3 {[%emt 0:00:27]} Bh5 {[%emt 0:00:02]} 8. Ngf3 {[%emt 0:00:02]} e6 {[%emt 0:00:58]} 9. Ne5 {[%emt 0:01:33]} Be7 {[%emt 0:02:02]} 10. g4 {[%emt 0:00:29]} Bg6 {[%emt 0:00:02]} 11. Nxg6 {[%emt 0:00:02]} hxg6 {[%emt 0:00:01]} 12. Bg2 {[%emt 0:00:02]} Qa6 {[%emt 0:02:46]} 13. a4 {[%emt 0:01:15]} O-O {[%emt 0:02:05]} 14. Qb3 {[%emt 0:01:23]} b6 {[%emt 0:01:12]} 15. Qb5 {[%emt 0:01:01]} Qc8 {[%emt 0:01:09]} 16. O-O {[%emt 0:02:06]} Nd7 {[%emt 0:03:58]} 17. Qe2 {[%emt 0:00:42]} Rd8 {[%emt 0:00:37]} 18. Rfd1 {[%emt 0:01:39]} Qb7 {[%emt 0:00:53]} 19. e4 {[%emt 0:01:16]} Nf6 {[%emt 0:00:01]} 20. e5 {[%emt 0:01:01]} Nd7 {[%emt 0:00:01]} 21. Nf3 {[%emt 0:00:01]} cxd4 {[%emt 0:00:14]} 22. cxd4 {[%emt 0:00:05]} Nb4 {[%emt 0:00:05]} 23. Rdc1 {[%emt 0:01:10]} Rac8 {[%emt 0:00:02]} 24. Bf1 {[%emt 0:00:12]} Rxc1 {[%emt 0:00:02]} 25. Rxc1 {[%emt 0:00:01]} Rc8 {[%emt 0:00:01]} 26. Rc3 {[%emt 0:01:00]} Na2 {[%emt 0:00:22]} 27. Rxc8+ {[%emt 0:00:37]} Qxc8 {[%emt 0:00:02]} 28. Bd2 {[%emt 0:00:13]} Nb4 {[%emt 0:00:34]} 29. Bxb4 {[%emt 0:00:40]} Bxb4 {[%emt 0:00:02]} 30. Qb5 {[%emt 0:00:01]} Be7 {[%emt 0:00:10]} 31. Kg2 {[%emt 0:00:11]} Nb8 {[%emt 0:00:13]} 32. a5 {[%emt 0:00:19]} bxa5 {[%emt 0:00:43]} 33. Qxa5 {[%emt 0:00:02]} Nc6 {[%emt 0:00:02]} 34. Qa4 {[%emt 0:00:07]} Qb7 {[%emt 0:00:29]} 35. Ba6 {[%emt 0:00:53]} Qb6 {[%emt 0:00:24]} 36. Bb5 {[%emt 0:00:05]} Nb4 {[%emt 0:00:06]} 37. Be2 {[%emt 0:00:28]} Nc6 {[%emt 0:00:03]} 38. h4 {[%emt 0:00:27]} Kf8 {[%emt 0:00:01]} 39. h5 {[%emt 0:00:28]} gxh5 {[%emt 0:00:06]} 40. gxh5 {[%emt 0:00:01]} Kg8 {[%emt 0:00:04]} 41. Bb5 {[%emt 0:00:04]} Nb4 {[%emt 0:00:04]} 42. Be2 {[%emt 0:00:05]} Nc6 {[%emt 0:00:01]} 43. Bd3 {[%emt 0:00:09]} Qb7 {[%emt 0:00:32]} 44. Ba6 {[%emt 0:00:47]} Qb6 {[%emt 0:00:03]} 45. Bb5 {[%emt 0:00:01]} Nb4 {[%emt 0:00:03]} 46. Be2 {[%emt 0:00:01]} Nc6 {[%emt 0:00:03]} 47. Bf1 {[%emt 0:00:06]} Qb7 {[%emt 0:00:15]} 48. Bd3 {[%emt 0:00:06]} Qb6 {[%emt 0:00:03]} 49. Bb1 {[%emt 0:00:32]} Qxb2 {[%emt 0:00:14]} 50. Qxc6 {[%emt 0:00:02]} Qxb1 {[%emt 0:00:02]} 51. Qa8+ {[%emt 0:00:03]} Bf8 {[%emt 0:00:11]} 52. Qxa7 {[%emt 0:00:23]} Qf5 {[%emt 0:00:09]} 53. Kg3 {[%emt 0:00:14]} Qxh5 {[%emt 0:00:03]} 54. Qb8 {[%emt 0:00:10]} Qg6+ {[%emt 0:00:10]} 55. Kh2 {[%emt 0:00:11]} Qf5 {[%emt 0:00:27]} 56. Kg3 {[%emt 0:00:02]} g5 {[%emt 0:00:18]} 57. Nh2 {[%emt 0:00:23]} Qf4+ {[%emt 0:00:06]} 58. Kg2 {[%emt 0:00:00]} Qxd4 {[%emt 0:00:07]} 59. f3 {[%emt 0:00:07]} Qd2+ {[%emt 0:00:22]} 60. Kg3 {[%emt 0:00:11]} Qf4+ {[%emt 0:00:13]} 61. Kg2 {[%emt 0:00:01]} Qb4 {[%emt 0:00:27]} 62. Qd8 {[%emt 0:00:14]} Qb2+ {[%emt 0:00:20]} 63. Kh3 {[%emt 0:00:03]} Qxe5 {[%emt 0:00:02]} 64. Ng4 {[%emt 0:00:01]} Qf5 {[%emt 0:00:04]} 65. Kg2 {[%emt 0:00:36]} Kg7 {[%emt 0:00:02]} 66. Qc7 {[%emt 0:00:15]} Qf4 {[%emt 0:00:10]} 67. Qc3+ {[%emt 0:00:13]} d4 {[%emt 0:00:01]} 68. Qe1 {[%emt 0:00:11]} Bd6 {[%emt 0:00:45]} 69. Qe2 {[%emt 0:00:08]} Qg3+ {[%emt 0:00:15]} 70. Kf1 {[%emt 0:00:02]} Qh3+ {[%emt 0:00:06]} 71. Kg1 {[%emt 0:00:03]} d3 {[%emt 0:00:16]} 72. Qe3 {[%emt 0:00:09]} Qg3+ {[%emt 0:00:09]} 73. Kf1 {[%emt 0:00:02]} Qh3+ {[%emt 0:00:08]} 74. Kg1 {[%emt 0:00:02]} Qg3+ {[%emt 0:00:13]} 75. Kf1 {[%emt 0:00:01]} Qf4 {[%emt 0:00:07]} 76. Qxd3 {[%emt 0:00:04]} Bc5 {[%emt 0:00:05]} 77. Kg2 {[%emt 0:00:25]} Qd4 {[%emt 0:00:03]} 78. Qa6 {[%emt 0:00:39]} Qg1+ {[%emt 0:00:21]} 79. Kh3 {[%emt 0:00:00]} Qh1+ {[%emt 0:00:09]} 80. Kg3 {[%emt 0:00:10]} Bd4 {[%emt 0:00:13]} 81. Qd3 {[%emt 0:00:13]} Qg1+ {[%emt 0:00:07]} 82. Kh3 {[%emt 0:00:01]} Bc5 {[%emt 0:00:13]} 83. Qd8 {[%emt 0:00:16]} Qh1+ {[%emt 0:00:08]} 84. Kg3 {[%emt 0:00:01]} Qe1+ {[%emt 0:00:04]} 85. Kh3 {[%emt 0:00:12]} Qf1+ {[%emt 0:00:18]} 86. Kg3 {[%emt 0:00:06]} Qg1+ {[%emt 0:00:11]} 87. Kh3 {[%emt 0:00:02]} Qh1+ {[%emt 0:00:05]} 88. Kg3 {[%emt 0:00:01]} Qe1+ {[%emt 0:00:18]} 89. Kh3 {[%emt 0:00:12]} Qh1+ {[%emt 0:00:08]} 90. Kg3 {[%emt 0:00:02]} Qg1+ {[%emt 0:00:06]} 91. Kh3 {[%emt 0:00:01]} Qf1+ {[%emt 0:00:15]} 92. Kg3 {[%emt 0:00:03]} Qe1+ {[%emt 0:00:01]} 1/2-1/2

[Event "RUS-ch Rapid Men 2018"]
[Site "Sochi"]
[Date "2018.10.06"]
[Round "7"]
[White "Maletin, Pavel"]
[Black "Jary, Sergey"]
[Result "1-0"]
[ECO "A11"]
[WhiteElo "2586"]
[BlackElo "2286"]
[Annotator "ChessBase"]
[PlyCount "61"]
[EventDate "2018.10.05"]
[EventType "swiss"]
[EventCountry "RUS"]
[SourceTitle "playchess.com"]
[Source "ChessBase"]
[SourceQuality "1"]
[TimeControl "900+10"]

1. c4 {[%emt 0:00:00]} c6 {[%emt 0:00:00]} 2. Nf3 {[%emt 0:00:00]} Nf6 {[%emt 0:00:00]} 3. g3 {[%emt 0:00:00]} g6 {[%emt 0:00:01]} 4. Bg2 {[%emt 0:00:02]} Bg7 {[%emt 0:00:01]} 5. d4 {[%emt 0:00:02]} d5 {[%emt 0:00:02]} 6. Qb3 {[%emt 0:00:02]} O-O {[%emt 0:00:02]} 7. Nc3 {[%emt 0:00:02]} Qb6 {[%emt 0:00:05]} 8. O-O {[%emt 0:00:02]} Na6 {[%emt 0:00:18]} 9. cxd5 {[%emt 0:01:42]} Qxb3 {[%emt 0:00:08]} 10. axb3 {[%emt 0:00:01]} cxd5 {[%emt 0:00:04]} 11. Ne5 {[%emt 0:00:13]} e6 {[%emt 0:00:03]} 12. Bf4 {[%emt 0:01:40]} Nh5 {[%emt 0:02:19]} 13. Bd2 {[%emt 0:00:09]} f5 {[%emt 0:00:01]} 14. Rfc1 {[%emt 0:00:53]} Bxe5 {[%emt 0:00:31]} 15. dxe5 {[%emt 0:00:04]} Bd7 {[%emt 0:00:01]} 16. Nxd5 {[%emt 0:00:19]} exd5 {[%emt 0:01:29]} 17. Bxd5+ {[%emt 0:00:02]} Kg7 {[%emt 0:00:01]} 18. Bxb7 {[%emt 0:00:03]} Rab8 {[%emt 0:00:13]} 19. Bxa6 {[%emt 0:00:02]} Be6 {[%emt 0:00:01]} 20. b4 {[%emt 0:00:30]} Rf7 {[%emt 0:00:25]} 21. Rc6 {[%emt 0:00:18]} Re8 {[%emt 0:00:21]} 22. Bc3 {[%emt 0:00:04]} Kf8 {[%emt 0:00:15]} 23. Bd3 {[%emt 0:00:32]} f4 {[%emt 0:00:34]} 24. Rca6 {[%emt 0:00:15]} Ree7 {[%emt 0:00:24]} 25. Bd4 {[%emt 0:00:05]} fxg3 {[%emt 0:00:08]} 26. hxg3 {[%emt 0:00:03]} Bc8 {[%emt 0:00:19]} 27. Rxa7 {[%emt 0:00:07]} Rxa7 {[%emt 0:00:01]} 28. Bxa7 {[%emt 0:00:03]} Ng7 {[%emt 0:00:08]} 29. Bc5+ {[%emt 0:00:02]} Ke8 {[%emt 0:00:01]} 30. Bb5+ {[%emt 0:00:35]} Kd8 {[%emt 0:00:12]} 31. Bb6+ {[%emt 0:00:02]} 1-0